bitfinex-derivatives/quotes_ETHF0:USTF0_20241008
["timestamp","ask_amount","ask_price","bid_price","bid_amount"]
[1728395556077,0.4038,2448.2,2447.8,1.02168]
[1728395556484,0.40863,2448.1,2448.0,0.40862]
[1728395557878,0.40865,2448.0,2447.7,3.2078]
[1728395558184,0.4087,2447.6,2447.5,0.40871]
[1728395559085,0.40872,2447.5,2447.4,3.61653]
[1728395559881,1.02165,2447.9,2447.4,3.2078]
[1728395560084,0.40872,2447.6,2447.5,0.40871]
[1728395560281,0.40872,2447.5,2447.4,0.40872]
[1728395560689,0.4087,2447.7,2447.6,0.40868]
[1728395561388,1.02166,2447.9,2447.4,3.2078]
[1728395561688,0.40872,2447.6,2447.5,0.4087]
[1728395562180,0.40872,2447.5,2447.4,3.61653]
[1728395562585,0.40877,2447.3,2447.2,0.40875]
[1728395562889,0.40872,2447.6,2447.5,0.40871]
[1728395563083,0.40872,2447.6,2447.2,5.10832]
[1728395563084,1.02166,2447.9,2447.2,1.02192]
[1728395563389,0.40868,2447.9,2447.8,0.40866]
[1728395563787,1.02168,2447.8,2447.3,3.2078]
[1728395564084,0.40877,2447.3,2447.2,0.40875]
[1728395564882,1.0218,2447.5,2447.0,4.6234]
[1728395565089,0.40876,2447.4,2447.3,0.40874]
[1728395565290,0.40877,2447.3,2447.2,0.40875]
[1728395566300,0.40875,2447.4,2447.3,0.40873]
[1728395567190,0.40871,2447.7,2447.6,0.40869]
[1728395567391,0.40871,2447.6,2447.5,0.4087]
[1728395567687,0.40873,2447.5,2447.4,0.40872]
[1728395567892,0.4087,2447.7,2447.6,0.40868]
[1728395568794,0.40873,2447.5,2447.4,0.40872]
[1728395568991,0.40867,2447.9,2447.8,0.40866]
[1728395569292,0.40863,2448.1,2447.7,1.02172]
[1728395569498,0.40866,2447.9,2447.8,0.40865]
[1728395569790,1.02163,2448.0,2447.6,3.622]
[1728395569988,0.40868,2447.7,2447.6,0.40869]
[1728395570184,0.40872,2447.6,2447.5,0.4087]
[1728395570386,0.40872,2447.6,2447.3,3.2078]
[1728395570691,6.58183,2448.2,2447.3,3.2078]
[1728395570692,7.7466,2448.2,2447.3,3.2078]
[1728395570887,3.2078,2448.1,2447.3,3.2078]
[1728395571091,6.58183,2448.2,2447.3,3.2078]
[1728395571092,0.40873,2447.6,2447.3,3.2078]
[1728395571287,0.40873,2447.4,2447.3,3.61654]
[1728395571591,1.02164,2447.9,2447.3,4.22968]
[1728395571792,0.4087,2447.7,2447.6,0.40868]
[1728395571995,0.40872,2447.6,2447.3,3.2078]
[1728395572191,0.40873,2447.5,2447.4,0.40872]
[1728395572389,0.40871,2447.6,2447.5,0.4087]
[1728395573985,0.40871,2447.6,2447.3,3.2078]
[1728395574290,0.40873,2447.5,2447.4,0.40872]
[1728395575294,1.02169,2447.8,2447.3,3.2078]
[1728395575502,0.4087,2447.7,2447.6,0.40869]
[1728395577494,0.4109,2448.4,2447.6,13.2934]
[1728395577693,0.4109,2448.4,2447.6,3.2078]
[1728395577694,0.40863,2448.1,2447.6,3.2078]
[1728395577893,0.40871,2447.7,2447.6,0.4087]
[1728395578092,0.40873,2447.5,2447.4,0.40872]
[1728395578296,0.40871,2447.6,2447.5,0.4087]
[1728395579699,0.40873,2447.5,2447.4,0.40872]
[1728395579997,0.4087,2447.7,2447.6,0.40868]
[1728395580293,0.80598,2447.8,2447.7,0.40868]
[1728395580499,2.04286,2448.4,2447.6,3.2078]
[1728395580500,3.2078,2448.4,2447.6,3.2078]
[1728395580694,0.4134,2448.4,2447.6,3.2078]
[1728395580896,0.82197,2448.4,2448.3,0.40858]
[1728395581091,1.02126,2448.9,2448.1,1.02155]
[1728395581294,0.40856,2448.5,2448.4,0.40855]
[1728395581495,0.40858,2448.4,2448.3,0.40858]
[1728395581689,0.40858,2448.3,2448.2,3.61639]
[1728395582300,0.40858,2448.4,2448.3,0.40858]
[1728395582687,0.40858,2448.4,2448.2,3.2078]
[1728395582895,0.4134,2448.8,2448.2,3.2078]
[1728395582896,0.4134,2448.8,2448.3,4.0848]
[1728395583099,0.3973,2448.9,2448.8,0.4085]
[1728395584502,0.3973,2448.9,2448.6,0.40853]
[1728395584698,0.40852,2448.8,2448.6,0.40853]
[1728395584993,0.40852,2448.8,2448.5,3.2078]
[1728395585195,0.40852,2448.8,2448.7,0.40852]
[1728395585994,0.3973,2448.9,2448.8,0.4085]
[1728395586699,0.80578,2448.9,2448.8,0.4085]
[1728395586902,0.3973,2448.9,2448.8,0.4085]
[1728395587097,0.40845,2449.2,2449.1,0.40843]
[1728395587989,0.40845,2449.2,2448.8,1.02125]
[1728395587990,3.61622,2449.3,2449.2,0.40843]
[1728395588197,3.2078,2449.3,2448.7,1.02126]
[1728395588396,0.40849,2448.9,2448.8,0.40848]
[1728395588994,0.40853,2448.7,2448.6,0.40852]
[1728395589203,1.02114,2449.1,2448.7,0.40851]
[1728395589390,0.4085,2448.8,2448.7,0.40851]
[1728395590203,0.4111,2449.0,2448.9,0.40848]
[1728395590796,4.4943,2449.0,2448.9,0.40848]
[1728395591004,0.4111,2449.0,2448.9,0.40848]
[1728395591199,4.4943,2449.0,2448.9,0.40848]
[1728395591504,0.81957,2449.0,2448.9,0.40848]
[1728395591799,3.61623,2449.3,2449.2,0.40843]
[1728395592299,0.40836,2449.7,2449.6,0.40836]
[1728395592599,0.40837,2449.6,2449.5,0.40838]
[1728395592795,0.432,2449.7,2449.1,3.2078]
[1728395592796,1.4529,2449.7,2449.1,3.2078]
[1728395592995,1.4529,2449.7,2448.2,2.24402452]
[1728395592996,0.40848,2449.0,2448.9,0.40848]
[1728395593192,0.40844,2449.2,2449.1,0.40844]
[1728395593392,0.40842,2449.3,2449.2,0.40842]
[1728395593790,4.0832,2449.3,2448.8,1.02126]
[1728395594003,0.40846,2449.1,2449.0,0.40846]
[1728395594507,4.49166,2449.1,2449.0,0.40846]
[1728395594800,4.92656,2449.1,2449.0,0.40846]
[1728395594996,0.40848,2449.0,2448.9,0.40848]
[1728395595192,0.4349,2449.1,2449.0,0.40847]
[1728395595795,4.92655,2449.1,2449.0,0.40847]
[1728395595990,4.5181,2449.1,2449.0,0.40847]
[1728395596389,0.428,2449.2,2449.1,0.40845]
[1728395596896,3.2078,2449.5,2448.7,4.0244]
[1728395597097,3.61619,2449.5,2449.3,0.40841]
[1728395597300,0.40841,2449.4,2449.2,0.40842]
[1728395597492,3.2078,2449.5,2448.9,1.02119]
[1728395597693,0.40846,2449.1,2449.0,0.40847]
[1728395597892,3.2078,2449.5,2448.7,3.2078]
[1728395598099,3.2078,2449.2,2448.3,3.2078]
[1728395598300,0.40847,2449.0,2448.5,0.40854]
[1728395598494,0.40853,2448.6,2448.4,0.40856]
[1728395598996,3.2078,2448.9,2448.3,3.2078]
[1728395599197,0.40853,2448.7,2448.6,0.40853]
[1728395599397,0.40853,2448.7,2448.5,0.40854]
[1728395599597,0.40853,2448.7,2448.6,0.40853]
[1728395599798,0.40855,2448.6,2448.4,0.40856]
[1728395600004,0.40854,2448.6,2448.5,0.40855]
[1728395600201,1.02126,2448.8,2448.3,3.2078]
[1728395600501,0.40852,2448.7,2448.6,0.40853]
[1728395600909,4.22903,2448.9,2448.3,3.2078]
[1728395601200,0.40854,2448.6,2448.5,0.40854]
[1728395601398,4.22903,2448.9,2448.3,3.2078]
[1728395602001,0.40857,2448.4,2448.0,3.2078]
[1728395602202,3.2078,2448.9,2448.0,3.2078]
[1728395602203,1.02126,2448.8,2448.0,3.2078]
[1728395602406,0.40861,2448.2,2448.1,0.40861]
[1728395602593,1.44957,2448.3,2448.0,0.40862]
[1728395602801,1.44957,2448.3,2447.7,4.65832]
[1728395603101,0.40863,2448.1,2447.9,0.40864]
[1728395603403,1.43017,2448.1,2447.7,0.40867]
[1728395603601,0.40867,2447.8,2447.7,0.40867]
[1728395603816,0.40862,2448.1,2447.7,0.40867]
[1728395604002,0.40871,2447.6,2447.5,0.40871]
[1728395604199,0.40871,2447.6,2447.3,3.2078]
[1728395604200,1.02168,2447.8,2447.3,3.2078]
[1728395604397,0.40872,2447.5,2447.4,0.40873]
[1728395604596,0.40874,2447.4,2447.3,0.40875]
[1728395605096,4.0864,2447.4,2447.0,0.4456]
[1728395605301,1.02186,2447.4,2446.7,3.2078]
[1728395605499,0.40884,2446.8,2446.7,0.40885]
[1728395605698,0.40885,2446.7,2446.6,0.40886]
[1728395605900,1.02205,2446.9,2446.4,0.4179]
[1728395606199,0.40889,2446.5,2446.3,3.6167]
[1728395606402,0.40888,2446.6,2446.4,0.4089]
[1728395606604,0.40888,2446.6,2446.3,3.2078]
[1728395606605,0.4373,2446.8,2446.3,3.61671]
[1728395606815,0.4089,2446.4,2446.3,3.61671]
[1728395607305,1.02232,2446.3,2445.3,3.2078]
[1728395607506,3.61682,2445.8,2445.5,0.40905]
[1728395607706,0.40902,2445.7,2445.5,0.40905]
[1728395607903,0.40902,2445.7,2445.3,3.2078]
[1728395608203,7.2966,2445.8,2445.3,3.61687]
[1728395608204,0.40904,2445.6,2445.3,3.61687]
[1728395608402,3.2078,2445.8,2445.3,3.2078]
[1728395608603,0.40904,2445.6,2445.3,3.61688]
[1728395608804,0.40904,2445.6,2445.3,3.2078]
[1728395609008,0.40904,2445.6,2445.3,3.61688]
[1728395609209,3.2078,2445.8,2445.3,3.2078]
[1728395609410,0.40904,2445.6,2445.3,0.40908]
[1728395609602,0.40907,2445.4,2444.9,3.2078]
[1728395609802,0.40907,2445.4,2445.1,0.40911]
[1728395610001,0.40909,2445.3,2445.0,0.40913]
[1728395610206,0.40913,2445.1,2444.8,0.40916]
[1728395610402,0.40907,2445.4,2445.1,0.40911]
[1728395610699,3.61687,2445.5,2445.2,0.4091]
[1728395610900,0.40908,2445.4,2445.1,0.40912]
[1728395611302,0.40908,2445.4,2445.1,0.40911]
[1728395611705,3.2078,2445.5,2445.0,3.2078]
[1728395611901,0.40908,2445.4,2445.2,0.4091]
[1728395612508,3.61686,2445.5,2445.2,0.4091]
[1728395612709,0.40909,2445.3,2445.0,0.40913]
[1728395613015,0.4091,2445.3,2444.7,3.2078]
[1728395613311,3.2078,2445.5,2444.7,3.2078]
[1728395613613,0.40907,2445.4,2445.2,0.4091]
[1728395613814,3.2078,2445.5,2444.7,3.2078]
[1728395614010,3.2078,2445.8,2445.7,0.40902]
[1728395614411,3.2078,2445.8,2445.6,0.40903]
[1728395614913,3.2078,2445.8,2445.7,0.40902]
[1728395616116,3.2078,2446.4,2445.7,3.2078]
[1728395616325,3.2078,2446.4,2445.5,1.86764]
[1728395616509,0.40896,2446.1,2445.9,0.40898]
[1728395616822,0.40896,2446.1,2445.5,1.86764]
[1728395616823,3.2078,2446.1,2445.5,0.845]
[1728395617025,0.40902,2445.8,2445.5,1.25404]
[1728395617318,0.40902,2445.7,2445.5,1.25404]
[1728395617523,0.40902,2445.8,2445.6,0.40903]
[1728395617821,0.40899,2445.9,2445.7,0.40902]
[1728395618014,0.40899,2445.9,2445.5,0.845]
[1728395618015,0.40901,2445.8,2445.6,0.40903]
[1728395618216,0.40897,2446.0,2445.7,0.40901]
[1728395618416,3.2078,2446.1,2445.9,0.40899]
[1728395618623,3.2078,2446.1,2446.0,0.40897]
[1728395618830,3.2078,2446.1,2445.6,3.2078]
[1728395619028,3.2078,2446.1,2445.9,0.40898]
[1728395619029,3.61676,2446.1,2445.9,0.40898]
[1728395619421,4.088,2446.0,2445.9,0.40898]
[1728395619623,0.40901,2445.8,2445.6,3.61682]
[1728395619920,0.40901,2445.8,2445.5,0.845]
[1728395620225,3.2078,2446.1,2445.5,0.845]
[1728395620423,3.2078,2446.1,2445.6,3.2078]
[1728395620616,0.40899,2445.9,2445.8,0.409]
[1728395620918,0.40902,2445.8,2445.6,0.40903]
[1728395621327,4.23021,2446.1,2445.5,0.845]
[1728395621328,3.2078,2446.1,2445.5,0.845]
[1728395621517,3.2078,2445.8,2445.5,0.40905]
[1728395621718,0.40904,2445.6,2445.4,0.40905]
[1728395621919,3.2078,2445.8,2445.4,0.40906]
[1728395621920,0.40905,2445.5,2445.4,0.40906]
[1728395622126,4.23035,2445.8,2445.1,0.426]
[1728395622425,3.2078,2445.5,2444.9,0.4249]
[1728395622727,3.93,2445.6,2444.9,0.4249]
[1728395622728,0.40914,2445.0,2444.9,0.4249]
[1728395622922,0.40917,2444.8,2444.6,4.03829]
[1728395623431,3.2078,2445.2,2444.6,3.6291]
[1728395623728,0.40912,2445.1,2444.6,0.4213]
[1728395623921,0.40912,2445.1,2444.6,3.6291]
[1728395624117,3.2078,2445.2,2444.6,3.6291]
[1728395624325,3.2078,2445.6,2444.6,7.5591]
[1728395624522,0.40906,2445.5,2445.4,0.40907]
[1728395624720,3.2078,2445.8,2445.1,1.87661]
[1728395625023,0.40905,2445.5,2445.4,0.40906]
[1728395626024,0.40905,2445.6,2445.5,0.40905]
[1728395626425,0.40906,2445.5,2445.4,0.40906]
[1728395626619,0.40908,2445.4,2445.3,0.40908]
[1728395627026,0.40906,2445.5,2445.4,0.40906]
[1728395627924,1.02261,2445.6,2445.2,0.40909]
[1728395628133,0.40899,2445.9,2445.8,0.409]
[1728395628333,7.3428,2446.1,2445.3,1.02272]
[1728395628334,3.2078,2446.1,2446.0,0.40897]
[1728395628530,0.40895,2446.2,2445.5,4.23044]
[1728395628531,3.2078,2446.2,2446.1,0.40895]
[1728395629023,0.40888,2446.6,2446.5,0.40888]
[1728395629222,0.40892,2446.4,2445.9,4.23027]
[1728395629423,0.40892,2446.4,2446.3,0.40892]
[1728395629830,3.6211,2446.7,2445.9,3.2078]
[1728395630127,4.64325,2446.7,2446.0,1.02242]
[1728395630329,0.40889,2446.5,2446.4,0.40889]
[1728395630733,4.49609,2446.5,2446.4,0.40889]
[1728395630935,0.4089,2446.4,2446.3,0.40891]
[1728395631321,8.31809,2446.4,2445.8,0.8328]
[1728395631530,0.40896,2446.1,2446.0,0.40896]
[1728395631829,0.40898,2446.0,2445.9,0.40898]
[1728395632024,3.2078,2446.4,2445.8,0.4016]
[1728395632222,1.4314,2446.0,2445.7,0.409]
[1728395632429,0.409,2445.9,2445.4,1.45178]
[1728395632730,0.40901,2445.8,2445.7,0.40901]
[1728395633039,3.2078,2446.1,2445.4,0.4291]
[1728395633227,1.02247,2445.9,2445.4,0.4291]
[1728395633432,0.40905,2445.5,2445.4,0.83815]
[1728395634227,1.02251,2445.8,2445.4,0.4291]
[1728395634427,0.40905,2445.5,2445.4,0.40906]
[1728395634727,3.2078,2445.8,2445.3,0.84627]
[1728395634728,0.40907,2445.4,2445.3,0.84627]
[1728395635229,0.40907,2445.4,2445.3,0.40907]
[1728395636531,4.0896,2445.4,2444.8,0.8069]
[1728395636733,3.2078,2445.5,2444.8,0.8069]
[1728395636932,3.2078,2445.5,2444.9,1.02289]
[1728395637127,0.40908,2445.4,2445.3,0.40907]
[1728395637433,3.2078,2445.5,2444.9,1.02289]
[1728395637628,0.40909,2445.3,2445.2,0.40909]
[1728395638332,0.40908,2445.4,2445.3,0.40907]
[1728395638828,0.4091,2445.3,2445.2,0.40909]
[1728395639433,0.40908,2445.4,2445.3,0.40907]
[1728395640033,4.95259,2445.7,2445.6,0.40903]
[1728395640034,0.40903,2445.7,2445.6,0.40903]
[1728395640733,5.15752,2445.8,2445.5,0.40905]
[1728395640934,0.40905,2445.6,2445.5,0.40905]
[1728395641325,1.02252,2445.8,2445.1,3.2078]
[1728395641522,0.40909,2445.3,2445.2,0.40909]
[1728395641725,3.2078,2445.6,2445.1,0.40911]
[1728395641726,0.40911,2445.2,2445.1,0.40911]
[1728395642136,0.40908,2445.4,2445.3,0.40907]
[1728395642529,4.49868,2445.4,2445.3,0.40907]
[1728395643330,0.40908,2445.4,2445.3,0.40907]
[1728395643632,4.49868,2445.4,2445.3,0.40907]
[1728395643838,0.40906,2445.5,2445.4,0.40907]
[1728395644041,3.2078,2445.6,2445.5,0.40905]
[1728395644231,0.40909,2445.4,2445.3,0.40908]
[1728395644432,0.4091,2445.3,2445.2,0.4091]
[1728395645237,0.40909,2445.4,2445.3,0.40908]
[1728395645437,3.2078,2445.6,2444.7,1.02295]
[1728395645739,3.2078,2445.3,2444.5,0.4038]
[1728395645938,0.4092,2444.6,2444.5,0.81302]
[1728395646234,3.93,2445.1,2444.4,0.4433]
[1728395646235,3.2078,2444.9,2444.4,0.4433]
[1728395646431,0.40916,2444.9,2444.7,0.40917]
[1728395646630,0.40916,2444.9,2444.8,0.40916]
[1728395646828,1.02287,2445.0,2444.5,0.3936]
[1728395647031,0.4092,2444.6,2444.5,0.3936]
[1728395647234,0.40922,2444.5,2444.4,0.85253]
[1728395647540,0.4092,2444.7,2444.6,0.4092]
[1728395647739,4.4996,2444.7,2444.6,0.4092]
[1728395647937,7.3428,2445.2,2444.5,1.02306]
[1728395648139,0.40917,2444.9,2444.8,0.40916]
[1728395648937,3.2078,2445.2,2444.5,3.2078]
[1728395649240,0.40917,2444.9,2444.8,0.40916]
[1728395649938,0.40914,2445.0,2444.9,0.40913]
[1728395650440,0.40913,2445.1,2445.0,0.40912]
[1728395651040,0.40915,2445.0,2444.9,0.40914]
[1728395651736,0.40915,2445.0,2444.8,0.4298]
[1728395652044,0.40922,2444.5,2444.4,1.04891107]
[1728395652336,0.40922,2444.5,2444.0,3.10585172]
[1728395652337,1.02306,2444.5,2444.1,1.04891107]
[1728395652530,1.02312,2444.4,2444.0,0.8141]
[1728395652736,0.4093,2444.0,2443.9,3.2078]
[1728395652935,0.40932,2443.9,2443.8,0.40932]
[1728395653233,0.3944,2444.3,2443.4,5.07081107]
[1728395653234,4.23108,2444.0,2443.4,5.07081107]
[1728395653439,4.23108,2444.0,2443.5,0.40938]
[1728395653440,0.40938,2443.6,2443.5,0.40938]
[1728395653630,1.02331,2443.9,2443.6,0.40936]
[1728395653831,1.02331,2443.9,2443.4,3.6038]
[1728395654037,0.40935,2443.8,2443.7,0.40935]
[1728395654239,3.2078,2444.0,2443.7,0.40935]
[1728395654437,7.2998,2444.0,2443.4,0.396]
[1728395654738,0.40935,2443.7,2443.4,0.396]
[1728395655037,0.40937,2443.6,2443.5,0.40939]
[1728395655236,3.2078,2444.0,2443.4,0.396]
[1728395655443,0.40935,2443.8,2443.4,0.396]
[1728395655642,0.40935,2443.8,2443.7,0.40935]
[1728395655841,0.40935,2443.8,2443.4,0.396]
[1728395656047,4.23109,2444.0,2443.4,0.396]
[1728395656240,1.02331,2443.9,2443.4,0.396]
[1728395656440,0.40935,2443.7,2443.6,0.40936]
[1728395657447,0.40936,2443.7,2443.6,0.40936]
[1728395658342,0.40935,2443.8,2443.7,0.40935]
[1728395658546,0.40935,2443.8,2443.4,0.396]
[1728395658741,0.40937,2443.6,2443.5,0.40937]
[1728395659140,0.40943,2443.3,2443.1,0.4181]
[1728395659342,3.2078,2443.4,2442.6,0.4308]
[1728395659550,0.40939,2443.5,2443.4,0.40939]
[1728395660048,0.40934,2443.8,2443.7,0.40934]
[1728395660242,4.135,2443.9,2443.2,4.2314]
[1728395660448,4.135,2443.9,2443.3,1.02356]
[1728395660647,0.40935,2443.8,2443.6,0.40936]
[1728395660949,3.2078,2444.0,2443.5,3.2078]
[1728395661144,3.2078,2444.0,2443.9,0.40932]
[1728395661647,3.6171,2444.0,2443.9,0.40932]
[1728395661953,3.2078,2444.0,2443.9,0.40932]
[1728395663751,4.135,2444.4,2444.3,0.40925]
[1728395664051,0.40923,2444.5,2444.4,0.40923]
[1728395664238,0.40919,2444.7,2444.6,0.40919]
[1728395664439,4.49959,2444.7,2444.6,0.40919]
[1728395664645,4.0904,2444.7,2444.4,0.40922]
[1728395664843,4.3634,2444.8,2444.1,1.02321]
[1728395665041,0.84258,2444.8,2444.7,0.40919]
[1728395665243,0.40918,2444.8,2444.7,0.40919]
[1728395665443,0.40919,2444.7,2444.6,0.4092]
[1728395665655,3.2078,2444.9,2444.3,0.4169]
[1728395665852,0.40922,2444.5,2444.4,0.40923]
[1728395666150,0.40923,2444.5,2444.4,0.40923]
[1728395666546,0.40924,2444.4,2444.3,0.40924]
[1728395666741,4.0912,2444.4,2443.9,0.4169]
[1728395666941,3.2078,2444.3,2443.9,0.4169]
[1728395667143,1.41981,2444.4,2443.9,0.4169]
[1728395667352,0.40928,2444.2,2444.1,0.40928]
[1728395667654,3.2078,2444.3,2443.9,0.4169]
[1728395667848,0.4093,2444.0,2443.9,0.82621]
[1728395668147,4.23095,2444.3,2443.9,0.82621]
[1728395668148,4.23095,2444.3,2444.0,0.4093]
[1728395668454,0.40927,2444.2,2444.1,0.40927]
[1728395668746,3.61707,2444.3,2444.2,0.40927]
[1728395668941,0.40927,2444.2,2444.1,0.40927]
[1728395669147,3.2078,2444.3,2443.9,0.4169]
[1728395669453,3.2078,2444.6,2444.0,1.02327]
[1728395669651,3.61702,2444.6,2444.5,0.40922]
[1728395670249,3.6397,2444.9,2443.9,3.6247]
[1728395670450,0.4092,2444.7,2444.6,0.4092]
[1728395670650,0.40919,2444.7,2444.4,0.40924]
[1728395670951,3.2078,2444.9,2444.2,3.6329]
[1728395671150,3.2078,2444.9,2444.8,0.40917]
[1728395671371,0.40911,2445.2,2445.1,0.4091]
[1728395671557,3.61689,2445.3,2445.2,0.4091]
[1728395672049,0.40912,2445.1,2444.7,0.4183]
[1728395672250,0.40914,2445.0,2444.9,0.40914]
[1728395673148,1.02276,2445.2,2444.9,0.40914]
[1728395673352,1.02276,2445.2,2444.7,0.4183]
[1728395673353,0.40913,2445.1,2445.0,0.40913]
[1728395673762,7.1378,2445.3,2444.7,1.44125]
[1728395673954,0.40911,2445.2,2445.1,0.4091]
[1728395674154,0.40911,2445.2,2444.8,1.02293]
[1728395674155,7.1378,2445.3,2444.8,1.02293]
[1728395674456,0.40911,2445.2,2445.1,0.40911]
[1728395674658,7.1378,2445.3,2445.2,0.4091]
[1728395674862,0.40907,2445.4,2445.3,0.40907]
[1728395675156,0.40906,2445.5,2445.4,0.40906]
[1728395675559,0.40906,2445.5,2445.1,1.02281]
[1728395675560,0.40908,2445.4,2445.3,0.40907]
[1728395676155,4.2304,2445.6,2445.0,1.41894]
[1728395676357,0.40906,2445.5,2445.4,0.40906]
[1728395676757,3.61685,2445.6,2445.5,0.40905]
[1728395677256,7.70564,2445.6,2445.5,0.40905]
[1728395677462,7.2966,2445.6,2445.5,0.40905]
[1728395677652,3.2078,2445.6,2445.5,0.40905]
[1728395678348,0.40902,2445.7,2445.3,1.44382]
[1728395678660,4.0283,2445.9,2445.8,0.409]
[1728395678958,5.57171,2446.1,2445.9,0.40897]
[1728395678959,0.40898,2446.0,2445.9,0.40897]
[1728395679160,0.4143,2446.1,2446.0,0.40896]
[1728395679161,0.40897,2446.1,2446.0,0.40896]
[1728395679356,4.49697,2446.1,2446.0,0.40896]
[1728395679853,4.49697,2446.1,2445.9,0.40898]
[1728395679854,0.40898,2446.0,2445.9,0.40898]
[1728395680255,0.40898,2446.0,2445.7,0.389]
[1728395680256,0.40896,2446.1,2446.0,0.40896]
[1728395680462,4.23011,2446.3,2445.7,0.389]
[1728395680760,0.40904,2445.6,2445.5,0.40904]
[1728395680962,1.02252,2445.8,2445.3,0.4211]
[1728395681151,0.40903,2445.7,2445.6,0.40902]
[1728395681355,0.40901,2445.8,2445.7,0.40901]
[1728395681561,0.40902,2445.7,2445.6,0.40902]
[1728395681864,0.40901,2445.8,2445.7,0.40901]
[1728395682059,0.40901,2445.8,2445.7,0.40902]
[1728395682362,3.2078,2446.0,2445.5,1.02264]
[1728395682565,0.40901,2445.8,2445.7,0.40901]
[1728395683258,3.2078,2446.0,2445.3,0.4211]
[1728395683452,3.2078,2446.0,2445.5,0.40903]
[1728395683453,0.40904,2445.6,2445.5,0.40903]
[1728395683755,0.40908,2445.4,2445.3,0.40907]
[1728395683960,0.4091,2445.3,2445.2,0.4091]
[1728395684357,41.82264,2445.5,2445.1,0.4229]
[1728395684558,0.40908,2445.4,2445.3,0.40907]
[1728395684961,0.4091,2445.3,2445.2,0.40909]
[1728395686062,3.2078,2445.4,2445.1,0.4229]
[1728395686263,0.40908,2445.4,2445.3,0.40907]
[1728395686455,0.4091,2445.3,2445.2,0.40909]
[1728395687264,0.40908,2445.4,2445.3,0.40907]
[1728395687770,0.40907,2445.5,2445.4,0.40906]
[1728395688069,0.40907,2445.5,2445.3,0.40907]
[1728395688070,0.40908,2445.4,2445.3,0.40907]
[1728395688462,4.49868,2445.4,2444.8,4.422]
[1728395688667,0.4091,2445.3,2445.2,0.40909]
[1728395689366,3.2078,2445.7,2445.2,4.0896]
[1728395689664,0.40905,2445.6,2445.5,0.40904]
[1728395689868,0.40905,2445.6,2445.3,0.40907]
[1728395689869,0.40908,2445.4,2445.3,0.40907]
[1728395690064,0.40905,2445.6,2445.5,0.40904]
[1728395692266,4.62405,2445.8,2445.7,0.40902]
[1728395692267,0.80272,2445.8,2445.7,0.40902]
[1728395692467,0.40904,2445.7,2445.6,0.40903]
[1728395692968,4.62402,2445.8,2445.3,1.02272]
[1728395693177,4.62402,2445.8,2445.1,1.02277]
[1728395693357,4.62402,2445.8,2444.8,3.26007]
[1728395693358,0.40911,2445.3,2444.8,2.23712]
[1728395693566,0.40913,2445.1,2445.0,0.40912]
[1728395693876,0.40912,2445.2,2445.1,0.40911]
[1728395694266,0.40913,2445.1,2445.0,0.40912]
[1728395694463,1.02273,2445.3,2444.8,1.2142]
[1728395694663,0.40913,2445.1,2445.0,0.40912]
[1728395694864,4.23048,2445.5,2444.8,1.2142]
[1728395695074,0.4091,2445.3,2445.2,0.40908]
[1728395695272,0.40908,2445.4,2445.3,0.40907]
[1728395695468,0.40908,2445.4,2445.0,1.02285]
[1728395695773,0.40912,2445.2,2445.1,0.4091]
[1728395696165,0.4091,2445.3,2445.2,0.40909]
[1728395696676,4.0896,2445.3,2444.8,1.2142]
[1728395696870,0.40915,2445.0,2444.9,0.40913]
[1728395697066,0.40915,2445.0,2444.8,1.2142]
[1728395697067,0.40913,2445.1,2445.0,0.40912]
[1728395698368,0.40913,2445.1,2444.8,0.8122]
[1728395698569,1.02289,2445.0,2444.7,0.40918]
[1728395698871,0.40917,2444.8,2444.7,0.40918]
[1728395699276,0.40921,2444.7,2444.6,0.40919]
[1728395699463,0.40916,2444.9,2444.8,0.40917]
[1728395699775,0.79675,2445.0,2444.9,0.40915]
[1728395699972,5.15771,2445.4,2444.4,4.23088]
[1728395700163,4.135,2445.4,2444.9,1.02287]
[1728395700475,0.40903,2445.7,2445.2,1.02275]
[1728395700673,0.40903,2445.7,2445.0,7.1931]
[1728395700674,0.40903,2445.7,2445.6,0.40902]
[1728395700871,3.19,2445.9,2445.3,3.2078]
[1728395701081,3.19,2445.9,2445.8,0.409]
[1728395701082,3.59899,2445.9,2445.8,0.409]
[1728395701470,3.2078,2446.2,2445.7,3.19]
[1728395701664,3.2078,2446.2,2446.1,0.40895]
[1728395703274,7.2958,2446.2,2445.8,1.2623]
[1728395703468,0.40896,2446.1,2446.0,0.40897]
[1728395703772,3.2078,2446.2,2445.8,0.8375]
[1728395703773,0.40899,2445.9,2445.8,0.8375]
[1728395703977,4.2303,2445.9,2445.3,0.40909]
[1728395704178,3.2078,2445.9,2445.4,0.40906]
[1728395704371,3.2078,2445.9,2445.2,1.2087]
[1728395704570,3.2078,2445.9,2445.1,4.23058]
[1728395704571,3.2078,2445.6,2444.8,3.2078]
[1728395704774,3.93,2445.7,2444.3,3.93]
[1728395704775,3.2078,2445.3,2444.7,0.3951]
[1728395705276,0.40916,2444.9,2444.7,0.80428]
[1728395705466,0.40917,2444.8,2444.7,0.80428]
[1728395705672,4.95272,2445.4,2444.7,0.3951]
[1728395705673,3.2078,2445.0,2444.7,0.3951]
[1728395705866,0.40909,2445.3,2445.0,0.40913]
[1728395706078,1.0227,2445.4,2444.7,0.3951]